fUSD/lending_fUSD_20251205
["ID","MTS","AMOUNT","RATE_DAILY","PERIOD"]
[396259541,1764898247560,-1000.0,0.000305,30]
[396259542,1764898247572,-1000.0,0.00030517,2]
[396259543,1764898247582,-555.1325715,0.0003053,2]
[396259544,1764898247591,-1192.60210288,0.00030561,2]
[396259545,1764898247600,-17298.32479113,0.00030581,3]
[396259546,1764898247611,-1101.40168,0.00030581,3]
[396259547,1764898247622,-261.24098,0.00030581,3]
[396259548,1764898247751,-51690.8229055,0.00030581,3]
[396259549,1764898247763,-255301.55535037,0.00030581,3]
[396259550,1764898247772,-83053.5026894,0.00030581,3]
[396259551,1764898247782,-500.0,0.0003059,2]
[396259552,1764898247791,-500.0,0.0003059,2]
[396259553,1764898247801,-528.62921928,0.0003059,2]
[396259554,1764898247811,-500.0,0.0003059,2]
[396259555,1764898247821,-500.0,0.0003059,2]
[396259556,1764898247830,-500.0,0.0003059,2]
[396259557,1764898247839,-437.08239245,0.0003059,2]
[396259558,1764898247849,-500.0,0.0003059,2]
[396259559,1764898247858,-500.0,0.0003059,2]
[396259560,1764898247868,-500.0,0.0003059,2]
[396259561,1764898247877,-397.25912376,0.0003059,2]
[396259562,1764898247887,-500.0,0.0003059,2]
[396259563,1764898247896,-212.19687487,0.0003059,2]
[396259564,1764898247906,-500.0,0.0003059,2]
[396259565,1764898247915,-500.0,0.0003059,2]
[396259566,1764898247925,-500.0,0.0003059,2]
[396259567,1764898247934,-500.0,0.0003059,2]
[396259568,1764898247944,-500.0,0.0003059,2]
[396259569,1764898247953,-500.0,0.0003059,2]
[396259570,1764898247964,-500.0,0.0003059,2]
[396259571,1764898247974,-500.0,0.0003059,2]
[396259572,1764898247984,-500.0,0.0003059,2]
[396259573,1764898247993,-500.0,0.0003059,2]
[396259574,1764898248003,-500.0,0.0003059,2]
[396259575,1764898248013,-500.0,0.0003059,2]
[396259576,1764898248022,-500.0,0.0003059,2]
[396259578,1764898248033,-500.0,0.0003059,2]
[396259580,1764898248042,-500.0,0.0003059,2]
[396259582,1764898248052,-500.0,0.0003059,2]
[396259583,1764898248065,-175965.76727224,0.00030591,2]
[396259584,1764898248140,-501.41493613,0.00030591,2]
[396259585,1764898248152,-43102.59064592,0.00030591,2]
[396259586,1764898248164,-120396.01927808,0.00030591,2]
[396259587,1764898248175,-636.960009,0.00030591,2]
[396259588,1764898248187,-734.57431527,0.00030591,2]
[396259589,1764898248198,-392.42322,0.00030591,2]
[396259590,1764898248209,-412.05845751,0.00030591,2]
[396259591,1764898248221,-1588.39822783,0.00030591,2]
[396259592,1764898248232,-1164.99761564,0.00030591,2]
[396259593,1764898248324,-4779.79456686,0.00030591,2]
[396259594,1764898248335,-4334.78576873,0.00030591,2]
[396259595,1764898251959,-3795.25735958,0.00030591,2]
[396259596,1764898251971,-3605.53971555,0.00030591,2]
[396259597,1764898252029,-606.553,0.00030591,2]
[396259598,1764898252041,-5745.0,0.00030591,2]
[396259599,1764898252053,-582.0582955,0.00030591,2]
[396259600,1764898252132,-431.69864103,0.00030591,2]
[396259601,1764898252144,-2503.20420611,0.00030591,2]
[396259602,1764898252155,-536.02986,0.00030591,2]
[396259603,1764898252167,-96116.71138828,0.00030591,2]
[396259604,1764898252179,-135082.55191085,0.00030591,2]
[396259605,1764898252192,-86457.94573348,0.00030591,2]
[396259606,1764898252204,-332.28049473,0.00030591,2]
[396259607,1764898252217,-420.22282652,0.00030591,2]
[396259608,1764898252230,-894.81483,0.00030591,2]
[396259609,1764898252243,-284.376,0.00030591,2]
[396259610,1764898252296,-290.99047736,0.00030591,2]
[396259611,1764898252307,-679.09774294,0.00030591,2]
[396259612,1764898252320,-14218.90041072,0.00030591,2]
[396259613,1764898252331,-1509.34266157,0.00030591,2]
[396259614,1764898252342,-10276.89826205,0.00030591,2]
[396259615,1764898252355,-2949.0,0.00030591,2]
[396259616,1764898252367,-422.88,0.00030591,2]
[396259630,1764898409592,166.76949995,0.00015873,2]
[396259631,1764898413053,501.21693404,0.00015873,2]
[396259637,1764898527466,500.56405144,0.00015873,2]
[396259640,1764898707254,503.60134831,0.00015873,2]
[396259641,1764898760288,462.45,0.00017,5]
[396259642,1764898760822,500.0,0.00015873,2]
[396259643,1764898760868,1000.95226297,0.00016421,2]
[396259645,1764898871074,500.0,0.00015873,2]
[396259646,1764898871147,1005.0935172,0.00016421,2]
[396259647,1764898874073,500.0,0.00015873,2]
[396259648,1764898874369,474.3239707,0.00016421,2]
[396259652,1764898927019,498.75623864,0.00016973,2]
[396259653,1764899003955,162.62539503,0.00015873,2]
[396259655,1764899104914,150.23103584,0.00016973,2]
[396259658,1764899298123,-353.45492038,0.000188,2]
[396259659,1764899305648,500.0,0.00015873,2]
[396259660,1764899305686,1005.25398797,0.00016421,2]
[396259734,1764899460350,-502.37,0.000188,2]
[396259735,1764899460360,-500.0,0.00021,2]
[396259736,1764899460370,-150.62,0.00023194,2]
[396259737,1764899460380,-284.05902655,0.00023718,2]
[396259738,1764899460390,-150.51330422,0.00027397,5]
[396259739,1764899460399,-150.0,0.00028,14]
[396259740,1764899460409,-151.0,0.00028093,2]
[396259741,1764899460419,-900.0,0.00029136,2]
[396259742,1764899460429,-1200.0,0.00029152,2]
[396259743,1764899460439,-714.78,0.00029154,120]
[396259744,1764899460449,-6012.42,0.00029154,2]
[396259745,1764899460460,-170.72,0.00029213,2]
[396259746,1764899460471,-9999.99,0.00029213,2]
[396259747,1764899460481,-184.00269677,0.00029255,2]
[396259748,1764899460493,-317.83793008,0.00029255,2]
[396259749,1764899460502,-13565.79,0.00029273,2]
[396259750,1764899460512,-744.14,0.000293,2]
[396259751,1764899460523,-900.0,0.00029684,2]
[396259752,1764899460536,-1000.0,0.00029772,2]
[396259753,1764899460546,-177.39012368,0.0002979,15]
[396259754,1764899460556,-166.18537156,0.0002979,2]
[396259755,1764899460760,-599.51956662,0.00029799,2]
[396259756,1764899460786,-1003.0,0.000298,30]
[396259757,1764899460796,-730.64,0.0002988,3]
[396259758,1764899460807,-500.0,0.00029889,120]
[396259759,1764899460817,-500.0,0.00029889,120]
[396259760,1764899460827,-500.0,0.00029889,120]
[396259761,1764899460837,-500.0,0.00029889,120]
[396259762,1764899460848,-500.0,0.00029889,120]
[396259763,1764899460858,-500.0,0.00029889,120]
[396259764,1764899460869,-500.0,0.00029889,120]
[396259765,1764899460879,-500.0,0.00029889,120]
[396259766,1764899460889,-500.0,0.00029889,120]
[396259767,1764899460899,-500.0,0.00029889,120]
[396259768,1764899460908,-633.56956953,0.00029889,120]
[396259769,1764899460919,-500.0,0.00029889,120]
[396259770,1764899460928,-500.0,0.00029889,120]
[396259771,1764899460937,-500.0,0.00029889,120]
[396259772,1764899460947,-500.0,0.00029889,2]
[396259773,1764899460956,-500.0,0.00029889,2]
[396259774,1764899460965,-500.0,0.00029889,2]
[396259775,1764899460974,-503.9543882,0.00029889,120]
[396259776,1764899460984,-500.0,0.00029889,120]
[396259777,1764899460995,-500.0,0.00029889,120]
[396259778,1764899461011,-500.0,0.00029889,120]
[396259779,1764899461020,-582.57039835,0.00029889,30]
[396259780,1764899461030,-570.67,0.00029889,14]
[396259781,1764899461041,-500.0,0.00029889,2]
[396259782,1764899461051,-500.0,0.00029889,2]
[396259783,1764899461061,-441.42840045,0.00029889,2]
[396259784,1764899461071,-161.06470812,0.00029889,2]
[396259785,1764899461082,-33565.76451587,0.0002989,2]
[396259786,1764899461155,-517.45490978,0.0002989,2]
[396259787,1764899461166,-701.62574342,0.0002989,2]
[396259788,1764899461177,-1364.71260208,0.0002989,2]
[396259789,1764899461208,-3066.46802771,0.0002989,2]
[396259790,1764899461300,-1189.407222,0.0002989,2]
[396259791,1764899461357,-8132.89210205,0.0002989,2]
[396259792,1764899461369,-1483.33288539,0.0002989,2]
[396259793,1764899461443,-11548.2064641,0.0002989,2]
[396259794,1764899461454,-3956.17444209,0.0002989,2]
[396259795,1764899461466,-816.29357764,0.0002989,2]
[396259796,1764899469396,-210.72223101,0.00029136,2]
[396259797,1764899469406,-81875.97002341,0.0002989,2]
[396259798,1764899469417,-1752.00103224,0.0002989,2]
[396259799,1764899469589,-476.40016926,0.0002989,2]
[396259800,1764899469600,-407.22196959,0.0002989,2]
[396259801,1764899469611,-642.12284043,0.0002989,2]
[396259802,1764899469644,-1023.47056,0.0002989,2]
[396259803,1764899471611,-25000.0,0.0002989,2]
[396259804,1764899471665,-159056.44093559,0.0002989,2]
[396259805,1764899472318,-1.7e-07,0.0002989,2]
[396259806,1764899474352,-35290.08792323,0.0002989,2]
[396259807,1764899474504,-789.44390463,0.0002989,2]
[396259808,1764899474516,-732.79061095,0.0002989,2]
[396259809,1764899474550,-781.47808843,0.0002989,2]
[396259810,1764899474561,-500.0,0.0002989,2]
[396259811,1764899474572,-7894.39866846,0.0002989,2]
[396259812,1764899475157,-621.329991,0.0002989,2]
[396259813,1764899479106,-289.69567143,0.0002989,2]
[396259814,1764899479118,-903.24137434,0.0002989,2]
[396259815,1764899479205,-63294.167909,0.0002989,2]
[396259816,1764899479217,-312327.40583571,0.0002989,2]
[396259817,1764899479226,-14599.2531,0.0002989,2]
[396259818,1764899479235,-209.17571966,0.00029982,2]
[396259819,1764899479246,-301.90800429,0.00029982,2]
[396259820,1764899479256,-500.0,0.00029989,120]
[396259821,1764899479266,-500.0,0.00029989,120]
[396259822,1764899479276,-500.0,0.00029989,120]
[396259823,1764899479285,-500.0,0.00029989,120]
[396259824,1764899479295,-500.0,0.00029989,2]
[396259825,1764899479305,-504.46336391,0.00029989,120]
[396259826,1764899479314,-1267.409,0.0002999,24]
[396259827,1764899479323,-500.0,0.00029999,120]
[396259828,1764899479333,-500.0,0.00029999,120]
[396259829,1764899479343,-347.49596206,0.00029999,120]
[396259830,1764899479353,-500.0,0.00029999,120]
[396259831,1764899479362,-500.0,0.00029999,120]
[396259832,1764899479372,-500.0,0.00029999,120]
[396259833,1764899479383,-500.0,0.00029999,120]
[396259834,1764899479392,-500.0,0.00029999,120]
[396259835,1764899479402,-500.0,0.00029999,120]
[396259836,1764899479413,-500.0,0.00029999,120]
[396259837,1764899479423,-500.0,0.00029999,120]
[396259838,1764899479433,-500.0,0.00029999,120]
[396259839,1764899479443,-500.0,0.00029999,2]
[396259840,1764899479453,-500.0,0.00029999,2]
[396259841,1764899479465,-500.0,0.00029999,2]
[396259842,1764899479475,-500.0,0.00029999,2]
[396259843,1764899479486,-469829.21405545,0.0003,2]
[396259844,1764899479541,-1273.35928114,0.0003,2]
[396259845,1764899479614,-657.5104487,0.0003,2]
[396259846,1764899479667,-12127.1228994,0.0003,2]
[396259847,1764899481810,387.0,0.000204,120]
[396259900,1764899771739,154.38,0.00014472,2]
[396259901,1764899771968,154.38,0.00015788,2]
[396259902,1764899779894,1512.0,0.00016411,2]
[396259903,1764899783907,-154.38,0.00017104,2]
[396259911,1764899849046,199.62,0.00016712,2]
[396259912,1764899889709,1000.0,0.00016421,2]
[396259913,1764899890119,500.0,0.00015873,2]
[396259914,1764899890167,1500.0,0.00016968,2]
[396260002,1764900330760,500.0,0.00015873,2]
[396260003,1764900330880,1000.0,0.00016421,2]
[396260004,1764900330952,1500.0,0.00016968,2]
[396260011,1764900342255,-173.52947433,0.00017416,2]
[396260050,1764900634469,-335.349535,0.00017516,2]
[396260051,1764900634520,-85.87947131,0.00017516,2]
[396260052,1764900634530,-346.18552885,0.00017516,2]
[396260053,1764900634539,-162.10923017,0.00017968,2]
[396260054,1764900634549,-154.38,0.00018419,2]
[396260055,1764900634560,-182.56683145,0.00019268,2]
[396260056,1764900634595,-67.43316855,0.00019268,2]
[396260057,1764900634604,-154.38,0.00019735,2]
[396260058,1764900634614,-211.64985679,0.00020128,2]
[396260059,1764900634624,-2395.92987864,0.00020724,2]
[396260060,1764900634634,-163.356676,0.00021,2]
[396260061,1764900634645,-154.38,0.00021051,2]
[396260062,1764900634655,-154.38,0.00022366,2]
[396260063,1764900634666,-154.38,0.00023682,2]
[396260064,1764900634676,-150.0,0.00024624,2]
[396260065,1764900634686,-510.43734446,0.00024722,2]
[396260066,1764900634695,-154.38,0.00024998,2]
[396260067,1764900634704,-166.66,0.00025633,30]
[396260068,1764900634713,-562.63697636,0.00025792,2]
[396260069,1764900634724,-346.36302364,0.00025792,2]
[396260070,1764900634734,-212.88616506,0.00025889,2]
[396260071,1764900634748,-116.45221258,0.00025889,2]
[396260072,1764900634758,-166.66,0.00026173,30]
[396260073,1764900634767,-74.29952454,0.00026313,2]
[396260074,1764900634778,-80.08047546,0.00026313,2]
[396260075,1764900634787,-463.93952454,0.00026511,2]
[396260076,1764900634862,-736.06047546,0.00026511,2]
[396260077,1764900634875,-1500.0,0.00026512,120]
[396260078,1764900634895,-166.66,0.00026712,30]
[396260079,1764900634912,-300.0,0.00026998,2]
[396260080,1764900634923,-500.0,0.00026999,14]
[396260081,1764900634932,-500.0,0.00026999,14]
[396260082,1764900634942,-500.0,0.00026999,14]
[396260083,1764900634952,-500.0,0.00026999,14]
[396260084,1764900634962,-500.0,0.00026999,14]
[396260085,1764900634971,-500.0,0.00026999,14]
[396260086,1764900634981,-700.0,0.0002705,7]
[396260087,1764900634990,-2500.0,0.00027099,7]
[396260088,1764900635000,-600.0,0.00027121,7]
[396260089,1764900635010,-800.0,0.00027129,7]
[396260090,1764900635019,-1564.58487276,0.00027181,2]
[396260091,1764900635031,-1171.15387376,0.00027181,2]
[396260092,1764900635223,-590.50458591,0.00027181,2]
[396260093,1764900635300,-141.20559695,0.00027188,2]
[396260094,1764900635312,-8.79440305,0.00027188,2]
[396260095,1764900635322,-772.67217295,0.00027209,7]
[396260096,1764900635333,-531.69569396,0.00027209,7]
[396260097,1764900635386,-715.39403671,0.00027209,7]
[396260109,1764900642020,-451.5,0.00024624,2]
[396260110,1764900642029,-480.23809638,0.00027209,7]
[396260111,1764900642039,-1500.0,0.0002721,7]
[396260112,1764900642048,-800.0,0.00027217,7]
[396260113,1764900642061,-600.0,0.00027242,7]
[396260114,1764900642071,-166.66,0.00027252,30]
[396260115,1764900642081,-834.57000731,0.00027268,7]
[396260116,1764900642093,-445.88343693,0.00027268,7]
[396260117,1764900642126,-1199.44426882,0.00027268,7]
[396260118,1764900642140,-20.10228694,0.00027268,7]
[396260119,1764900642149,-461.3479628,0.00027357,7]
[396260120,1764900642199,-238.6520372,0.00027357,7]
[396260121,1764900642209,-800.0,0.00027384,7]
[396260122,1764900642219,-500.0,0.00027453,14]
[396260123,1764900642230,-1500.0,0.0002747,7]
[396260124,1764900642239,-800.0,0.00027495,7]
[396260125,1764900642248,-500.0,0.00027521,7]
[396260126,1764900642258,-4538.83,0.00027539,2]
[396260127,1764900642267,-3235.79357229,0.00027548,2]
[396260128,1764900642279,-1764.20642771,0.00027548,2]
[396260129,1764900642288,-800.0,0.00027564,7]
[396260130,1764900642297,-700.0,0.00027599,7]
[396260131,1764900642306,-154.38,0.00027629,2]
[396260132,1764900642316,-2500.0,0.00027681,7]
[396260134,1764900642325,-500.0,0.00027701,7]
[396260135,1764900642336,-600.0,0.00027708,7]
[396260137,1764900642346,-586.0943727,0.00027751,2]
[396260138,1764900642355,-600.0,0.00027755,7]
[396260139,1764900642364,-166.66,0.00027792,30]
[396260140,1764900642373,-600.0,0.00027803,7]
[396260141,1764900642382,-700.0,0.00027806,7]
[396260142,1764900642391,-500.0,0.00027817,7]
[396260143,1764900642400,-700.0,0.0002785,7]
[396260144,1764900642409,-500.0,0.00027851,7]
[396260145,1764900642418,-1500.0,0.00027887,7]
[396260146,1764900642427,-500.0,0.0002789,7]
[396260147,1764900642437,-600.0,0.00027951,7]
[396260148,1764900642452,-2500.0,0.00027969,7]
[396260149,1764900642462,-700.0,0.00028012,7]
[396260150,1764900642472,-700.0,0.00028078,7]
[396260151,1764900642482,-152.0,0.00028214,3]
[396260152,1764900642491,-2500.0,0.00028274,7]
[396260153,1764900642500,-700.0,0.00028301,7]
[396260154,1764900642510,-166.66,0.00028331,30]
[396260155,1764900642519,-500.0,0.00028398,7]
[396260156,1764900642528,-500.0,0.00028408,7]
[396260157,1764900642538,-500.0,0.00028424,7]
[396260158,1764900642547,-700.0,0.00028434,7]
[396260159,1764900642557,-2500.0,0.00028437,7]
[396260160,1764900642566,-500.0,0.00028466,7]
[396260161,1764900642575,-700.0,0.00028536,7]
[396260162,1764900642584,-600.0,0.00028556,7]
[396260163,1764900642594,-700.0,0.00028702,7]
[396260164,1764900642603,-500.0,0.0002872,7]
[396260165,1764900642613,-500.0,0.00028722,7]
[396260166,1764900642624,-700.0,0.00028762,7]
[396260167,1764900642635,-500.0,0.0002879,7]
[396260168,1764900642646,-909.0,0.00028792,2]
[396260169,1764900642656,-1680.0,0.00028803,2]
[396260170,1764900642667,-500.0,0.0002883,7]
[396260171,1764900642677,-600.0,0.00028833,7]
[396260172,1764900642690,-152.0,0.00028833,4]
[396260173,1764900642700,-500.0,0.0002887,7]
[396260174,1764900642710,-700.0,0.00028874,7]
[396260175,1764900642720,-150.0,0.00028931,2]
[396260176,1764900642730,-500.0,0.00028931,2]
[396260177,1764900642740,-500.0,0.00028931,2]
[396260178,1764900642750,-500.0,0.00028931,2]
[396260179,1764900642760,-500.0,0.00028931,2]
[396260180,1764900642770,-150.0,0.00028931,2]
[396260181,1764900642780,-150.0,0.00028931,2]
[396260182,1764900642792,-150.0,0.00028931,2]
[396260183,1764900642804,-150.0,0.00028931,2]
[396260184,1764900642815,-154.16730665,0.00028931,2]
[396260185,1764900642824,-900.0,0.00028932,2]
[396260186,1764900642833,-154.38,0.00028945,2]
[396260187,1764900642844,-700.0,0.00028987,7]
[396260188,1764900642854,-500.0,0.0002899,30]
[396260189,1764900642864,-500.0,0.0002899,30]
[396260190,1764900642875,-500.0,0.0002899,30]
[396260191,1764900643072,-500.0,0.0002899,30]
[396260192,1764900643104,-500.0,0.0002899,30]
[396260193,1764900643114,-500.0,0.0002899,30]
[396260194,1764900643125,-500.0,0.0002899,30]
[396260195,1764900643137,-500.0,0.0002899,30]
[396260196,1764900643146,-500.0,0.00029007,7]
[396260197,1764900643158,-700.0,0.00029065,7]
[396260199,1764900643168,-150.0,0.00029068,2]
[396260201,1764900643177,-500.0,0.00029068,2]
[396260202,1764900643188,-500.0,0.00029068,2]
[396260203,1764900643198,-500.0,0.00029068,2]
[396260204,1764900643208,-500.0,0.00029068,2]
[396260206,1764900643218,-150.0,0.00029068,2]
[396260207,1764900643227,-150.0,0.00029068,2]
[396260208,1764900643237,-150.0,0.00029068,2]
[396260209,1764900643246,-800.0,0.00029098,7]
[396260210,1764900643255,-500.0,0.00029137,7]
[396260211,1764900643266,-420.0,0.00029188,2]
[396260212,1764900643275,-800.0,0.00029191,7]
[396260213,1764900643289,-150.0,0.00029205,2]
[396260214,1764900643299,-500.0,0.00029205,2]
[396260215,1764900643309,-500.0,0.00029205,2]
[396260216,1764900643319,-500.0,0.00029205,2]
[396260217,1764900643328,-500.0,0.00029205,2]
[396260218,1764900643339,-209.46208463,0.00029205,2]
[396260219,1764900643349,-203.26785061,0.00029205,2]
[396260220,1764900643359,-153.54968971,0.00029205,2]
[396260221,1764900643369,-706.22,0.0002926,2]
[396260222,1764900643379,-3266.21472964,0.00029264,5]
[396260223,1764900645271,-258.39013124,0.00029264,5]
[396260224,1764900645401,-2201.39513912,0.00029264,5]
[396260225,1764900645411,-800.0,0.00029264,7]
[396260226,1764900645421,-500.0,0.00029271,7]
[396260227,1764900645430,-150.0,0.00029342,2]
[396260228,1764900645440,-500.0,0.00029342,2]
[396260229,1764900645449,-500.0,0.00029342,2]
[396260230,1764900645459,-500.0,0.00029342,2]
[396260231,1764900645468,-500.0,0.00029407,7]
[396260232,1764900645477,-1500.0,0.00029412,7]
[396260233,1764900645487,-1000.0,0.00029421,2]
[396260234,1764900645496,-185.57293047,0.00029424,7]
[396260235,1764900645620,-314.42706953,0.00029424,7]
[396260236,1764900645630,-152.0,0.00029452,5]
[396260237,1764900645639,-31.21293047,0.00029479,2]
[396260240,1764900648720,-240.02498681,0.00029479,2]
[396260241,1764900648729,-500.0,0.00029479,2]
[396260242,1764900648739,-500.0,0.00029479,2]
[396260243,1764900648748,-500.0,0.00029479,2]
[396260244,1764900648758,-900.0,0.0002948,2]
[396260245,1764900648768,-1500.0,0.00029493,7]
[396260246,1764900648777,-2500.0,0.00029538,7]
[396260247,1764900648787,-700.0,0.00029548,7]
[396260248,1764900648952,-700.0,0.00029555,7]
[396260249,1764900649019,-3924.37680772,0.0002959,2]
[396260250,1764900651433,-1181.39263457,0.0002959,2]
[396260251,1764900651445,-4601.04104587,0.0002959,2]
[396260252,1764900651456,-1123.249965,0.0002959,2]
[396260280,1764901396803,206.0,0.00025,120]
[396260281,1764901512114,500.3993338,0.00015873,2]
[396260282,1764901515771,500.0,0.00015873,2]
[396260283,1764901519123,501.24236272,0.00015873,2]
[396260284,1764901522252,501.05174336,0.00015873,2]
[396260285,1764901522490,500.32003169,0.00015873,2]
[396260286,1764901522652,162.54115199,0.00015873,2]
[396260287,1764901522682,165.46296998,0.00015873,2]
[396260288,1764901523631,503.8408437,0.00015873,2]
[396260289,1764901526013,500.2210751,0.00015873,2]
[396260290,1764901526108,500.52819731,0.00015873,2]
[396260291,1764901528528,161.71861808,0.00015873,2]
[396260292,1764901528923,499.33467294,0.00015873,2]
[396260293,1764901529385,201.2256678,0.00015873,2]
[396260294,1764901529697,165.11868572,0.00015873,2]
[396260295,1764901530182,500.0,0.00015873,2]
[396260296,1764901530887,215.82598779,0.00015873,2]
[396260297,1764901530917,500.4567122,0.00015873,2]
[396260298,1764901533831,500.29540711,0.00015873,2]
[396260299,1764901534018,500.22803299,0.00015873,2]
[396260300,1764901536167,500.42810678,0.00015873,2]
[396260301,1764901571762,502.19569569,0.00015873,2]
[396260302,1764901572568,500.36898765,0.00015873,2]
[396260303,1764901573979,172.11722736,0.00015873,2]
[396260304,1764901574004,61.14673948,0.00015873,2]
[396260305,1764901575079,500.0,0.00015873,2]
[396260306,1764901575926,501.43530514,0.00015873,2]
[396260309,1764901624567,533.87441013,0.00015873,2]
[396260310,1764901624618,501.71822153,0.00015873,2]
[396260311,1764901624912,163.39505513,0.00015873,2]
[396260324,1764901684593,500.30195195,0.00015873,2]
[396260325,1764901685958,157.37558341,0.00015873,2]
[396260326,1764901686326,160.18937868,0.00015873,2]
[396260329,1764901744480,501.25200207,0.00015873,2]
[396260330,1764901745033,172.26042424,0.00015873,2]
[396260332,1764901806968,500.50004944,0.00015873,2]
[396260333,1764901808356,223.59136753,0.00015873,2]
[396260334,1764901809342,500.0,0.00015873,2]
[396260354,1764901833948,-1200.0,0.00017998,2]
[396260355,1764901833958,-349.29097925,0.00017999,2]
[396260356,1764901833969,-452.79700015,0.00017999,2]
[396260357,1764901833981,-397.9120206,0.00017999,2]
[396260358,1764901833991,-18.29101338,0.00017999,2]
[396260359,1764901834067,-281.70898662,0.00017999,2]
[396260360,1764901834076,-300.0,0.00017999,2]
[396260361,1764901834086,-300.0,0.00017999,2]
[396260362,1764901834096,-550.0,0.00017999,2]
[396260363,1764901834107,-304.0,0.00017999,2]
[396260364,1764901834117,-4364.29101328,0.00018,2]
[396260365,1764901834130,-5880.0,0.00018,2]
[396260366,1764901834141,-1300.0,0.00018,2]
[396260367,1764901834195,-276890.69987361,0.00018,2]
[396260368,1764901834207,-6953.26271678,0.00018,2]
[396260369,1764901834219,-404.53844161,0.00018,2]
[396260370,1764901834290,-416.97000018,0.00018,2]
[396260371,1764901834301,-364.74926,0.00018,2]
[396260372,1764901834312,-834.786,0.00018,2]
[396260373,1764901834324,-446.99893371,0.00018,2]
[396260374,1764901834394,-999.0,0.00018,2]
[396260375,1764901834406,-518.04655203,0.00018,2]
[396260383,1764901841010,-1341.69773257,0.00018,2]
[396260384,1764901841021,-1260.0,0.00018,2]
[396260385,1764901841033,-1118.10003,0.00018,2]
[396260386,1764901841241,-13588.29665377,0.00018,2]
[396260387,1764901841251,-3348.5852357,0.00018979,2]
[396260388,1764901841260,-677.0,0.00019079,2]
[396260389,1764901841270,-420.0,0.00019639,2]
[396260390,1764901841282,-1680.0,0.00019734,2]
[396260391,1764901841291,-3348.58523568,0.00020415,2]
[396260392,1764901841301,-587.0,0.00021428,2]
[396260393,1764901841311,-2351.0,0.00021638,2]
[396260394,1764901841320,-3348.58523568,0.0002185,2]
[396260395,1764901841331,-3348.58523568,0.00023286,2]
[396260396,1764901841341,-587.0,0.00023381,2]
[396260397,1764901841352,-2356.0,0.00023726,2]
[396260398,1764901841364,-150.0,0.00024658,5]
[396260399,1764901841374,-3348.58523568,0.00024722,2]
[396260400,1764901841383,-171.65,0.00024883,2]
[396260401,1764901841392,-6845.15,0.00025259,2]
[396260402,1764901841401,-909.0,0.00025422,2]
[396260403,1764901841608,-4416.14511983,0.00026057,2]
[396260404,1764901841618,-3348.58523568,0.00026157,2]
[396260405,1764901841627,-4416.14511976,0.00026706,2]
[396260406,1764901841637,-487.64,0.00027,5]
[396260407,1764901841646,-566.611,0.0002701,2]
[396260408,1764901841655,-500.0,0.0002704,7]
[396260409,1764901841665,-1300.0,0.00027262,7]
[396260410,1764901841674,-1800.0,0.00027327,7]
[396260411,1764901841683,-500.0,0.00027342,7]
[396260412,1764901841692,-500.0,0.00027352,7]
[396260413,1764901841702,-4416.14511976,0.00027355,2]
[396260414,1764901841712,-500.0,0.00027367,7]
[396260415,1764901841722,-1300.0,0.00027376,7]
[396260416,1764901841735,-1300.0,0.00027378,7]
[396260417,1764901841744,-500.0,0.00027397,2]
[396260418,1764901841754,-600.0,0.00027417,7]
[396260419,1764901841763,-1300.0,0.00027451,7]
[396260420,1764901841775,-1000.0,0.0002759,2]
[396260421,1764901841790,-3348.58523568,0.00027593,2]